Cogmind - Beta 11.1 @@@ ROGUE MODE // 2022.05.23 @ 15:12:10 Player: Decinym Result: Destroyed by 99-TNT with 99-TNT's Nukerbomber Performance ------------- Evolutions (1) 500 Regions Visited (6) 1200 Robots Destroyed (62) 310 Value Destroyed (1162) 1162 Prototype IDs (40) 800 Alien Tech Used (0) 0 Bonus (350) 350 TOTAL SCORE: 4322 Bonus ------- Follower Combat Kills 50 Aligned with FarCom 300 Cogmind --------- Core Integrity 0/400 Matter 17/300 Energy 310/310 System Corruption 5% Temperature Cool (0) Movement Walking (120) Location -8/Mines Parts ------- > --- POWER (1) -------- Heavy Deuterium Engine > --- PROPULSION (2) --- Advanced Myomer Leg > --- UTILITY (4) ------ Experimental Core Analyzer > --- WEAPON (2) ------- 8R-AWN's Boregun 8R-AWN's Boregun > --- INVENTORY (5) ---- Large Storage Unit Improved Armor Integrity Analyzer Advanced Transmission Jammer AS-neutralizer No. 17b Flak Cannon Peak State ------------ > --- POWER ------------ Heavy Deuterium Engine > --- PROPULSION ------- Advanced Myomer Leg Advanced Myomer Leg > --- UTILITY ---------- Experimental Core Analyzer 8R-AWN's Armor/EX > --- WEAPON ----------- 8R-AWN's Boregun 8R-AWN's Boregun > --- INVENTORY -------- Large Storage Unit Improved Armor Integrity Analyzer Advanced Transmission Jammer AS-neutralizer No. 17b Flak Cannon [Rating: 83] Favorites ----------- Power Cooled Ion Engine Engine Cooled Ion Engine Power Core Reinforced Fission Core Propulsion Light Treads Treads Light Treads Leg Advanced Myomer Leg Wheel Armored Huge Wheel Utility Large Storage Unit Device Heat Sink Storage Large Storage Unit Processor Improved Targeting Computer Protection Improved Light Armor Plating Weapon Heavy Assault Rifle Energy Gun Medium Laser Ballistic Gun Heavy Assault Rifle Launcher Mini Grenade Launcher Special Weapon Welding Torch Slashing Weapon Makeshift Axe Special Melee Weapon Datajack Build | -11 -10 -10 -9 -9 -9 -8 ------- Run | Scr Mat Min Mat Min Exi Min Slots Evolved 2 | . . . 2 . . . Power . | . . . . . . . Propulsion . | . . . . . . . Utility 2 | . . . 2 . . . Weapon . | . . . . . . . Parts Attached 65 | . 2 7 32 3 19 2 Power 7 | . . 1 3 . 3 . Engine 6 | . . 1 3 . 2 . Core 1 | . . . . . 1 . Reactor . | . . . . . . . Propulsion 11 | . . 2 6 1 2 . Treads 8 | . . 2 6 . . . Leg 2 | . . . . . 2 . Wheel 1 | . . . . 1 . . Hover . | . . . . . . . Flight . | . . . . . . . Utility 19 | . . 1 11 2 3 2 Device 5 | . . . 4 . 1 . Storage 1 | . . . 1 . . . Processor 4 | . . 1 1 . 1 1 Hackware . | . . . . . . . Protection 9 | . . . 5 2 1 1 Artifact . | . . . . . . . Weapon 28 | . 2 3 12 . 11 . Energy Gun 7 | . . 1 6 . . . Energy Cannon . | . . . . . . . Ballistic Gun 15 | . 1 1 6 . 7 . Ballistic Cannon . | . . . . . . . Launcher 2 | . . . . . 2 . Special Weapon 2 | . 1 . . . 1 . Impact Weapon . | . . . . . . . Slashing Weapon 1 | . . 1 . . . . Piercing Weapon . | . . . . . . . Special Melee Weapon 1 | . . . . . 1 . Unidentified Prototypes 3 | . . . 3 . . . Parts Lost 8 | . . . 1 . 6 1 Power . | . . . . . . . Propulsion 1 | . . . . . 1 . Utility 5 | . . . 1 . 3 1 Weapon 2 | . . . . . 2 . Highest Loss Streak 2 | . . . 1 . 2 1 To Critical Strikes 3 | . . . . . 3 . Average Slot Usage (%) 89 | . 85 96 97 97 77 71 Engine 11 | . 14 14 10 11 10 11 Treads 13 | . . 21 22 17 . . Leg 4 | . 28 6 . . 6 16 Wheel 2 | . . . . 2 7 . Device 2 | . . . 5 . 2 . Storage 11 | . 14 14 11 11 11 . Processor 10 | . . 10 10 11 10 10 Protection 14 | . . . 16 22 18 11 Energy Gun 6 | . 14 16 10 . . . Ballistic Gun 10 | . 12 6 10 22 8 22 Naked Turns . | . . . . . . . Heaviest Build 67 | 11 11 15 38 40 54 67 Greatest Support 60 | 20 20 40 46 46 60 60 Greatest Overweight (x) 13 | . . . . 1 13 1 Average Overweight (x) . | . . . . . . . Largest Inventory Capacity 15 | . 8 8 15 15 15 15 Average Capacity 12 | . 8 8 11 15 15 5 Most Carried 15 | . 5 8 15 15 15 15 Average Carried 11 | . 4 7 10 14 13 5 Final Capacity 15 | 8 8 8 15 15 15 5 Final Carried 15 | 6 4 8 15 15 15 5 Class Distribution -------------------- 69% | Mutant 30% | Scavenger-Mutant Dominant Class ---------------- Mutant | -10/Materials Mutant | -10/Mines Mutant | -9/Materials Scavenger-Mutant | -9/Mines Mutant | -9/Exiles Scavenger-Mutant | -8/Mines Resources | -11 -10 -10 -9 -9 -9 -8 ----------- Run | Scr Mat Min Mat Min Exi Min Matter Collected 2036 | 200 . 117 766 44 816 93 Remotely . | . . . . . . . Salvage Created 2380 | . . 529 1332 67 452 . Parts 187 | . . 38 77 2 70 . Haulers Intercepted 5 | . . . 5 . . . Recyclers Shooed 4 | . . 2 2 . . . Parts Field Recycled . | . . . . . . . Retrieved Matter . | . . . . . . . Parts Self-Destructed . | . . . . . . . Prevented . | . . . . . . . Kills | -11 -10 -10 -9 -9 -9 -8 ------- Run | Scr Mat Min Mat Min Exi Min Combat Hostiles Destroyed 44 | . . 14 23 3 4 . Melee 4 | . . 4 . . . . Guns 38 | . . 10 22 3 3 . AOE 1 | . . . . . 1 . Classes Destroyed 12 | . . 7 3 . 2 . Builder 1 | . . 1 . . . . Tunneler 2 | . . 2 . . . . Hauler 5 | . . . 5 . . . Recycler 4 | . . 1 3 . . . Turret 1 | . . . . . 1 . Watcher 2 | . . . 2 . . . Swarmer 14 | . . 6 8 . . . Grunt 14 | . . 4 9 1 . . Brawler 1 | . . . 1 . . . Sentry 7 | . . 2 5 . . . Zionite 8 | . . . . . 8 . Assembled 7 | . . 2 . 2 3 . Best Kill Streak 8 | . . 5 5 2 8 . Combat Bots Only 5 | . . 3 5 2 3 . Max Kills in Single Turn 2 | . . 2 1 1 1 . Gunslinging 1 | . . 1 . . . . Exploded 1 | . . . . . 1 . Melee 1 | . . 1 . . . . Uniques/NPCs Destroyed 4 | . . . . . 4 . 8R-AWN (-9/Exiles) EX-HEX (-9/Exiles) EX-DEC (-9/Exiles) EX-BIN (-9/Exiles) Combat | -11 -10 -10 -9 -9 -9 -8 -------- Run | Scr Mat Min Mat Min Exi Min Damage Taken 3214 | . . 484 962 . 1272 496 Core 518 | . . 116 130 . 183 89 Absorbed by Shields . | . . . . . . . Redirected to Shielding 28 | . . . 28 . . . Regen/Repaired (Parts) 74 | . . . 74 . . . Core Remaining (%) 76 | 100 . 53 . . . . Volleys Fired 236 | . 5 25 101 4 76 25 Largest 2 | . 2 2 2 2 2 2 Hottest 121 | . 70 70 121 46 60 60 Shots Fired 442 | . 7 50 189 8 138 50 Gun 427 | . 4 50 189 8 126 50 Cannon . | . . . . . . . Launcher 9 | . . . . . 9 . Special 6 | . 3 . . . 3 . Kinetic 314 | . 2 25 103 8 126 50 Thermal 119 | . 5 25 86 . 3 . Explosive 9 | . . . . . 9 . Electromagnetic . | . . . . . . . Robot Hit Streak 19 | . 1 10 13 5 19 6 Robot Miss Streak 6 | . 1 1 5 1 3 6 Penetration Max 1 | . . . . . 1 . Secondary Targets 12 | . . 5 6 . 1 . Max Gunslinging Chain 1 | . . 1 1 . 1 . Shots Hit Robots 302 | . 2 49 132 6 92 21 Core Hits 124 | . 1 26 45 5 42 5 Critical Kills 4 | . . . 1 . 3 . Critical Parts Destroyed 17 | . 1 . 1 . 11 4 Critical Strikes 40 | . 1 5 11 . 14 9 Burn 13 | . . 4 9 . . . Destroy 26 | . 1 . 2 . 14 9 Sever 1 | . . 1 . . . . Melee Attacks 47 | . . 43 . . 4 . Impact . | . . . . . . . Slashing 43 | . . 43 . . . . Piercing . | . . . . . . . Sneak Attacks 7 | . . 3 . . 4 . Combat Hostiles . | . . . . . . . Follow-up Attacks . | . . . . . . . Damage Inflicted 5047 | . 16 911 2012 89 1789 230 Guns 4216 | . 16 399 2012 89 1491 209 Cannons . | . . . . . . . Explosions 295 | . . . . . 295 . Melee 512 | . . 512 . . . . Ramming 21 | . . . . . . 21 Kinetic 3080 | . 16 166 1109 89 1491 209 Thermal 1139 | . . 233 903 . 3 . Explosive 295 | . . . . . 295 . Electromagnetic . | . . . . . . . Impact . | . . . . . . . Slashing 512 | . . 512 . . . . Piercing . | . . . . . . . Highest Corruption 5 | . . . 1 1 5 5 Average Corruption 2 | . . . 1 1 2 5 Corruption Purged . | . . . . . . . Corruption Blocked . | . . . . . . . Effects 37 | . . . 4 6 23 4 Message Errors 8 | . . . 1 1 5 1 Matter Fused 8 | . . . 1 . 7 . Heat Flow Errors 7 | . . . 1 1 4 1 Energy Discharges 6 | . . . . 1 4 1 Parts Rejected 1 | . . . . . . 1 Data Loss (minor) 4 | . . . . 2 2 . Data Loss (major) 1 | . . . . 1 . . Alerts 2 | . . . 1 . 1 . Overload Shots . | . . . . . . . Overflow Damage 96 | . . 96 . . . . Projectiles . | . . . . . . . Explosions . | . . . . . . . Melee 96 | . . 96 . . . . Knockbacks 1 | . . . . . . 1 Impact 1 | . . . . . . 1 Kinetic . | . . . . . . . Secondary . | . . . . . . . Self-Inflicted Damage 49 | . . . . . 49 . Shots 1 | . . . . . 1 . Rammed . | . . . . . . . Targets Rammed 3 | . . . . . . 3 Kicked 3 | . . . . . . 3 Crushed . | . . . . . . . Highest Temperature 378 | . 30 197 378 210 216 120 Average Temperature 71 | . 18 66 82 115 44 84 Received Heat Transfer 495 | . . 135 360 . . . Effects 2 | . . . 2 . . . Energy Bleed 2 | . . . 2 . . . Siege Activations . | . . . . . . . Robots Corrupted . | . . . . . . . Combat Hostiles . | . . . . . . . Parts Fried . | . . . . . . . Impact Corruptions . | . . . . . . . Robots Melted 1 | . . . 1 . . . Combat Hostiles 1 | . . . 1 . . . Parts Melted 13 | . . 2 11 . . . Heat Transferred 3838 | . . 999 2812 . 27 . Parts Sabotaged . | . . . . . . . Parts Stolen . | . . . . . . . Parts Stripped . | . . . . . . . Power Chain Reactions . | . . . . . . . Missiles Intercepted . | . . . . . . . Alert | -11 -10 -10 -9 -9 -9 -8 ------- Run | Scr Mat Min Mat Min Exi Min Peak Influence 403 | . . 159 403 132 . 15 Initial 132 | . . . 46 132 . . Average 156 | . . 90 250 71 . 5 Maximum Alert Level 2 | . . . 2 . . . Low Security (%) 68 | . 100 100 32 100 . 100 Level 1 28 | . . . 61 . . . Level 2 2 | . . . 5 . . . Level 3 . | . . . . . . . Level 4 . | . . . . . . . Level 5 . | . . . . . . . High Security . | . . . . . . . Max Security . | . . . . . . . Squads Dispatched 2 | . . . 1 1 . . Investigation 1 | . . . . 1 . . Extermination . | . . . . . . . Reinforcement 1 | . . . 1 . . . Assault . | . . . . . . . Garrison . | . . . . . . . Intercept . | . . . . . . . Searches Triggered . | . . . . . . . Construction Impeded . | . . . . . . . Haulers Reinforced . | . . . . . . . Active Scanning Responses . | . . . . . . . Cargo Convoy Interrupts . | . . . . . . . Stealth | -11 -10 -10 -9 -9 -9 -8 --------- Run | Scr Mat Min Mat Min Exi Min Distress Signals 4 | . . 2 2 . . . Communications Jammed . | . . . . . . . Distress Signals . | . . . . . . . Times Spotted 78 | . 1 16 35 2 23 1 Peak Tracking Total 9 | . 1 3 5 1 9 1 Tactical Retreats 5 | . . 1 2 . 2 . Traps | -11 -10 -10 -9 -9 -9 -8 ------- Run | Scr Mat Min Mat Min Exi Min Traps Triggered 3 | . . . 3 . . . Indirectly . | . . . . . . . Trap Hack Attempts . | . . . . . . . Triggered . | . . . . . . . Disarmed . | . . . . . . . Reprogrammed . | . . . . . . . Reused . | . . . . . . . Traps Extracted . | . . . . . . . Installed . | . . . . . . . Triggered . | . . . . . . . Exploded 3 | . . . . . 3 . Machines | -11 -10 -10 -9 -9 -9 -8 ---------- Run | Scr Mat Min Mat Min Exi Min Machines Disabled 11 | . . . . . 11 . Max in Single Turn 2 | . . . . . 2 . Machines Sabotaged . | . . . . . . . Garrisons Compromised . | . . . . . . . Overloaded Fab Kills . | . . . . . . . Hacking | -11 -10 -10 -9 -9 -9 -8 --------- Run | Scr Mat Min Mat Min Exi Min Machines Accessed 7 | . . 1 3 1 2 . Terminals 3 | . . 1 2 . . . Fabricators . | . . . . . . . Repair Stations 1 | . . . 1 . . . Recycling Units . | . . . . . . . Scanalyzers . | . . . . . . . Garrison Access . | . . . . . . . Total Hacks 21 | . . 6 12 1 2 . Successful 12 | . . 2 7 1 2 . Failed 8 | . . 3 5 . . . Catastrophic 1 | . . . 1 . . . Database Lockouts 1 | . . 1 . . . . Manual 8 | . . 6 1 . 1 . Terminals 12 | . . 6 6 . . . Fabricators . | . . . . . . . Repair Stations 6 | . . . 6 . . . Recycling Units . | . . . . . . . Scanalyzers . | . . . . . . . Garrison Access . | . . . . . . . Terminal Hacks 8 | . . 2 3 1 2 . Record 1 | . . . . . 1 . Part Schematic 2 | . . 2 . . . . Robot Analysis 1 | . . . 1 . . . Open Door 1 | . . . . 1 . . Branch Access Points 1 | . . . 1 . . . Hauler Manifests 1 | . . . 1 . . . EX-Prototype ID Bank 1 | . . . . . 1 . Fabricator Hacks . | . . . . . . . Repair Station Hacks 4 | . . . 4 . . . Scan Component 2 | . . . 2 . . . Repair 2 | . . . 2 . . . Recycling Unit Hacks . | . . . . . . . Scanalyzer . | . . . . . . . Garrison Access Hacks . | . . . . . . . Unauthorized Hacks . | . . . . . . . Terminals . | . . . . . . . Fabricators . | . . . . . . . Repair Stations . | . . . . . . . Recycling Units . | . . . . . . . Scanalyzers . | . . . . . . . Garrison Access . | . . . . . . . Data Cores Recovered . | . . . . . . . Used . | . . . . . . . Hacking Detections 4 | . . 1 3 . . . Full Trace Events . | . . . . . . . Feedback Events . | . . . . . . . Feedback Blocked . | . . . . . . . Robot Schematics Acquired . | . . . . . . . Robots Built . | . . . . . . . Authchips . | . . . . . . . Time . | . . . . . . . Total Robot Build Rating . | . . . . . . . Part Schematics Acquired 2 | . . 2 . . . . Parts Built . | . . . . . . . Authchips . | . . . . . . . Time . | . . . . . . . Total Part Build Rating . | . . . . . . . Parts Repaired 2 | . . . 2 . . . Time 58 | . . . 58 . . . Parts Recycled . | . . . . . . . Recycled Matter . | . . . . . . . Retrieved Matter . | . . . . . . . Retrieved Components . | . . . . . . . Parts Scanalyzed . | . . . . . . . Part Schematics Acquired . | . . . . . . . Parts Damaged . | . . . . . . . Bothacking | -11 -10 -10 -9 -9 -9 -8 ------------ Run | Scr Mat Min Mat Min Exi Min Used RIF Installer . | . . . . . . . Robots Hacked 4 | . . . . . 4 . Non-combat 3 | . . . . . 3 . Combat 1 | . . . . . 1 . Robot Hacks Applied 4 | . . . . . 4 . parse_system 4 | . . . . . 4 . Relay Couplers Released . | . . . . . . . Fabnet Peak Effective % . | . . . . . . . Robots Rewired . | . . . . . . . Allies Hacked . | . . . . . . . Hacks Repelled . | . . . . . . . Allies | -11 -10 -10 -9 -9 -9 -8 -------- Run | Scr Mat Min Mat Min Exi Min Total Allies 4 | . . 1 . 3 . . Largest Group 3 | . . 1 . 3 3 . Highest-Rated Group 40 | . . 31 . 40 40 . Highest-Rated Ally 31 | . . 31 . 16 16 . Total Orders 3 | . . . . . 3 . STAY 3 | . . . . . 3 . Ally Attacks 17 | . . 12 . . 5 . Total Damage 257 | . . 209 . . 48 . Kills 2 | . . 2 . . . . Allies Corrupted 1 | . . . . . 1 . Allies Melted . | . . . . . . . Intel | -11 -10 -10 -9 -9 -9 -8 ------- Run | Scr Mat Min Mat Min Exi Min Robot Analysis Total 1 | . . . 1 . . . Derelict Logs Recovered 2 | . . 1 . 1 . . Drone Launches . | . . . . . . . Drone Recoveries . | . . . . . . . Exploration | -11 -10 -10 -9 -9 -9 -8 ------------- Run | Scr Mat Min Mat Min Exi Min Turns Passed 5754 | . 92 1040 1818 780 1885 139 Spaces Moved 3253 | 1 62 574 847 406 1337 26 Core 3 | . . . . . 3 . Treads 1530 | . . 403 847 280 . . Legs 621 | 1 62 171 . . 361 26 Wheels 1099 | . . . . 126 973 . Hover . | . . . . . . . Flight . | . . . . . . . Fastest Speed 115 | 120 120 120 160 115 115 120 Average Speed 137 | 120 120 148 160 146 117 144 Slowest Speed 700 | 120 120 160 160 160 700 190 Overloaded Moves . | . . . . . . . Propulsion Burnouts . | . . . . . . . Robots Hopped . | . . . . . . . Cave-ins Triggered . | . . . . . . . Exploration Rate (%) 50 | 2 18 98 67 70 88 11 Regions Visited 6 Branch Regions 4 Pre-discovered Areas 1 | . . . . . 1 . Known Exits Taken 1 | . . . 1 . . . Unknown Exits Taken 5 | 1 1 1 . 1 1 . Scrap Searched 4 | . . 1 . 3 . . Spaces Dug 1 | . . 1 . . . . Terrain Destroyed 50 | . . 1 . . 15 34 Melee 1 | . . 1 . . . . Projectile 33 | . . . . . 3 30 AOE 12 | . . . . . 12 . Terrain Rammed . | . . . . . . . Walls Destroyed . | . . . . . . . Machines Disabled . | . . . . . . . Actions | -11 -10 -10 -9 -9 -9 -8 --------- Run | Scr Mat Min Mat Min Exi Min Total 4074 | . 73 679 1127 588 1528 79 Wait 343 | . 1 13 102 160 54 13 Move 3247 | . 61 573 846 405 1336 26 Hop . | . . . . . . . Pick Up 55 | . 1 10 18 6 20 . Fast Attach 27 | . . 3 17 3 4 . Attach 14 | . 1 2 2 . 8 1 Detach 2 | . . . 2 . . . Swap 24 | . 1 2 13 . 7 1 Drop 76 | . 3 8 26 10 19 10 Fire 236 | . 5 25 101 4 76 25 Melee 47 | . . 43 . . 4 . Ram . | . . . . . . . Kick 3 | . . . . . . 3 Crush . | . . . . . . . Escape Stasis . | . . . . . . . Rewire . | . . . . . . . Trap . | . . . . . . . Miscellaneous . | . . . . . . . Route ------- -11/Scrapyard -10/Materials -10/Mines (discovered 2 exits: *Mat x2) -9/Materials (discovered 3 exits: [*Mat x2] / *Min) -9/Mines (discovered 3 exits: [*Mat x2] / *Exi) -9/Exiles -8/Mines History --------- Turn | Location | Event 1 | -11/Scrapyard | Discovered new exit (range 0) 1 | -11/Scrapyard | Entered Materials 84 | -10/Materials | Discovered new exit (range 8) 93 | -10/Materials | Entered Mines 114 | -10/Mines | Central database locked down 142 | -10/Mines | Discovered new exit (range 11) 306 | -10/Mines | Build established: Mutant 425 | -10/Mines | Learned Materials stockpile data 444 | -10/Mines | A weapon hastily lodged in a ceiling crevice suddenly fell to the ground 536 | -10/Mines | Excavation squad dispatched 536 | -10/Mines | A large section of the Mines collapsed 591 | -10/Mines | Received a Mining Laser from a helpful Derelict 956 | -10/Mines | Discovered new exit (range 3) 1133 | -10/Mines | Entered Materials 1133 | -9/Materials | Evolved 2 slots: Utility x2 1423 | -9/Materials | Identified exit to Mines 1495 | -9/Materials | Build established: Scavenger-Mutant 1862 | -9/Materials | Discovered new exit (range 3) 1976 | -9/Materials | Repaired Lgt. Armor Plating 2009 | -9/Materials | Repaired Imp. Ion Engine 2078 | -9/Materials | Build established: Mutant 2701 | -9/Materials | Discovered new exit (range 15) 2951 | -9/Materials | Entered Mines 3030 | -9/Mines | Discovered new exit (range 15) 3031 | -9/Mines | Assembled infested the area 3036 | -9/Mines | Assisted by a Guerilla fighting off Assembled 3046 | -9/Mines | Discovered new exit (range 5) 3374 | -9/Mines | Learned 2 Materials zone layouts 3537 | -9/Mines | Met a Derelict shopkeep closing up shop 3606 | -9/Mines | Deemed a non-threat by the Exiles lab entrance 3606 | -9/Mines | Discovered new exit (range 5) 3622 | -9/Mines | Build established: Scavenger-Mutant 3677 | -9/Mines | Assisted by bots powering up and referring to "LRC-V3" 3731 | -9/Mines | Entered Exiles 3731 | -9/Exiles | Accompanied by 3 allies 3760 | -9/Exiles | Met 8R-AWN 3780 | -9/Exiles | Met EX-HEX 3822 | -9/Exiles | Met EX-BIN 3836 | -9/Exiles | Aligned with FarCom system 3837 | -9/Exiles | Given EX-Vault access code 3865 | -9/Exiles | Opened EX-Vault 3892 | -9/Exiles | Warned to stay clear of 0b10 Research branches 3951 | -9/Exiles | Met EX-DEC 4007 | -9/Exiles | Learned location of Zion (-6) 4063 | -9/Exiles | Build established: Mutant 4848 | -9/Exiles | Attacked by the Exiles 4944 | -9/Exiles | Core integrity fell below 50% 5043 | -9/Exiles | Destroyed 8R-AWN 5075 | -9/Exiles | Found 8R-AWN's Boregun 5082 | -9/Exiles | Found 8R-AWN's Armor/EX 5084 | -9/Exiles | Found 8R-AWN's Boregun 5086 | -9/Exiles | Found AS-neutralizer No. 17b 5314 | -9/Exiles | Destroyed EX-HEX 5359 | -9/Exiles | Build established: Scavenger-Mutant 5377 | -9/Exiles | Destroyed EX-DEC 5405 | -9/Exiles | Destroyed EX-BIN 5433 | -9/Exiles | Found Exp. Core Analyzer 5500 | -9/Exiles | Found System Purifier 5602 | -9/Exiles | Discovered new exit (range 12) 5616 | -9/Exiles | Entered Mines 5658 | -8/Mines | 99-TNT came to Exiles' defense 5744 | -8/Mines | Core integrity fell below 20% 5755 | -8/Mines | Destroyed by 99-TNT with 99-TNT's Nukerbomber Last Messages --------------- 05730_ HV Slug penetrates Earth. 05732_ The unstable cave ceiling collapses. 05733_ HV Slug penetrates Wall. 05733_ HV Slug penetrates 99-TNT. 05733_ 99-TNT suffers critical hit (Destroy). 05733_ Destroyed Cmb. Antigrav System. 05734_ The unstable cave ceiling collapses. 05736_ HV Slug penetrates Wall. 05737_ The unstable cave ceiling collapses. 05739_ HV Slug penetrates 99-TNT. 05739_ HV Slug penetrates Earth. 05740_ The unstable cave ceiling collapses. 05749_ Kicked 99-TNT. 05750_ The unstable cave ceiling collapses. 05751_ Kicked 99-TNT. 05751_ 99-TNT knocked back. 05752_ The unstable cave ceiling collapses. 05753_ Kicked 99-TNT. 05754_ The unstable cave ceiling collapses. 05755_ 8R-AWN's Armor/EX destroyed. Map ----- +----------------------------------------------------+ | | | | | | | | | | | | | | | | | | | | | | | | | | | | | | | | | ?????????????????????????????????????# ##???? | | ?????????????????????????????######## ##??? | | ??????????????????????????#### # #??? | | ????????????????????????### # # # #??? | | ??????????????????##???## # # #??? | | ????????????????### ### # # #??? | | ????????????????? ;;; # ## # #??? | | ???????????????## ## # # #?? | | ???????????????# ;; # #?? | | ?????????? d@ # # #?? | | ???????????# ;; # #?? | | ?????????? # ;# # #?? | | ???????????? ???#;; # ## # # ##?? | | ???????????# ???????#### # # ##??? | | ??????????????????????? # #######???? | | ?????????????????????? ###########?????????? | | ?????????????????????? #???????????????????? | | ?????????????????????""" """ #???????????????????? | | ???????????????????? """ """ #???????????????????? | | ???????????????????? """ """ #???????????????????? | | ?????????????????????? ?? #???????????????????? | | ???????????????????????" ??" #???????????????????? | | ???????????????????????" ??" #???????????????????? | | ???????????????????????" ??? #???????????????????? | | ???????????????????????? ??? ????????????????????? | | ?????????????????????????????????????????????????? | | ?????????????????????????????????????????????????? | | ?????????????????????????????????????????????????? | | ?????????????????????????????????????????????????? | | ?????????????????????????????????????????????????? | | ?????????????????????????????????????????????????? | | ?????????????????????????????????????????????????? | | ?????????????????????????????????????????????????? | | ?????????????????????????????????????????????????? | +----------------------------------------------------+ Best States ------------- Heat Dissipation 38 Energy Generation 19 Energy Capacity 310 Matter Stores 300 Matter Capacity 300 Sight Range 16 Terrain Scan Density 10 Armor Coverage 900 Resistance: EX 90 Weapon Shielding 33 Weapon Cycling 25 Evasion (%) 55 Targeting Accuracy 6 Core Analysis 8 Recoil Reduction 2 Item Schematics ----------------- Huge Storage Unit | -10/Mines | Hacked Hcp. Storage Unit | -10/Mines | Hacked Robot Schematics ------------------ None Fabricated ------------ Nothing Alien Tech Used ----------------- None Achievements -------------- None Challenges ------------ None Game ------ Seed AngularTerrainBooster Manual? 0 Play Time 00:38:11 Cumulative 356.4 hours Start 2022.05.23 @ 14:36:48 End 2022.05.23 @ 15:12:10 Sessions 1 Manual Loads 0 Difficulty Rogue Special Mode None Game No. 383 Rogue 383 Adventurer 0 Explorer 0 Win Type - Total 29 Types 18/3/2/1/2/0/3/0/0 Lore% 89 Gallery% 88 Achievement% 80 Wizard Run 0 Options --------- ASCII 0 Keyboard 0 Movement Arrows Keybinds 0 Fullscreen 2 Font 18/SmallcapsGlow Map View 76x50 Tactical HUD 1 Map Filters NONE Filters NONE Steam 1 RUN: ff0557eb-13f5-4499-a670-d1530016f1e8